Cogmind - Beta 15 @@@ ROGUE MODE // 2025.05.14 @ 07:41:08 Player: Ciaphas Result: Destroyed by G-67 Veteran with Field Laser Performance ------------- Evolutions (6) 3000 Regions Visited (10) 2000 Robots Destroyed (67) 335 Value Destroyed (1324) 1324 Prototype IDs (40) 800 Alien Tech Used (0) 0 Bonus (300) 300 TOTAL SCORE: 7759 Bonus ------- Aligned with FarCom 300 Cogmind --------- Core Integrity 0/1150 Matter 41/300 Energy 99/100 System Corruption 16% Temperature Cool (18) Movement Core (50) Location -4/Armory Parts ------- > --- POWER (2) -------- (None) > --- PROPULSION (5) --- (None) > --- UTILITY (10) ----- (None) > --- WEAPON (2) ------- (None) > --- INVENTORY (5) ---- KE Penetrator Precision Grenade Launcher Makeshift Sword Lance Peak State ------------ > --- POWER ------------ Light Fission Core Micro Fission Core > --- PROPULSION ------- Cooled VTOL Module Cooled VTOL Module Cooled VTOL Module Field Propulsion Array > --- UTILITY ---------- Machine Analyzer Enhanced Optical Array Transmission Jammer Jamming Amplifier Advanced ECM Suite Improved Utility Shielding Improved Light Armor Plating Hacking Suite Hacking Suite Advanced Trap Extractor > --- WEAPON ----------- Power Maul Lance > --- INVENTORY -------- Light Fission Core Xenon Bombardment Thruster KE Penetrator Precision Grenade Launcher Makeshift Sword [Rating: 91] Favorites ----------- Power Light Nuclear Core Engine Ion Engine Power Core Light Nuclear Core Reactor Antimatter Reactor Propulsion Light Treads Treads Light Treads Leg Aluminum Leg Hover Unit Combat Airjet Flight Unit Cooled VTOL Module Utility Structural Scanner Device Structural Scanner Storage High-capacity Storage Unit Processor 0b10 Alert Chip Hackware Hacking Suite Protection Improved Light Armor Plating Weapon Advanced Beam Cannon Energy Gun Small Laser Energy Cannon Advanced Beam Cannon Ballistic Gun Assault Rifle Ballistic Cannon Improved Light Cannon Launcher Grenade Launcher Impact Weapon Power Maul Slashing Weapon Makeshift Sword Piercing Weapon Lance Build | -11 -10 -10 -10 -9 -8 -7 -6 -5 -4 -4 ------- Run | Yrd Mat Min Exi Min Mat Fac Fac Fac Fac Arm Slots Evolved 12 | . . . . . 4 2 2 2 2 . Power 1 | . . . . . . . 1 . . . Propulsion 3 | . . . . . 1 1 . 1 . . Utility 8 | . . . . . 3 1 1 1 2 . Weapon . | . . . . . . . . . . . Parts Attached 86 | 2 12 . 2 4 13 18 12 6 12 5 Power 11 | . 1 . . . 3 1 2 2 1 1 Engine 1 | . . . . . 1 . . . . . Core 9 | . 1 . . . 2 1 2 2 1 . Reactor 1 | . . . . . . . . . . 1 Propulsion 24 | . 3 . . 1 3 8 3 1 4 1 Treads 9 | . 2 . . 1 3 3 . . . . Leg 2 | . 1 . . . . . . . . 1 Wheel . | . . . . . . . . . . . Hover 1 | . . . . . . . . 1 . . Flight 12 | . . . . . . 5 3 . 4 . Utility 35 | 1 6 . 2 . 3 6 6 3 5 3 Device 13 | 1 2 . . . 1 2 3 1 2 1 Storage 2 | . 1 . 1 . . . . . . . Processor 8 | . 1 . 1 . . 1 2 1 2 . Hackware 5 | . . . . . . 1 1 1 . 2 Protection 7 | . 2 . . . 2 2 . . 1 . Artifact . | . . . . . . . . . . . Weapon 16 | 1 2 . . 3 4 3 1 . 2 . Energy Gun 2 | 1 . . . . . . 1 . . . Energy Cannon 3 | . 1 . . . 2 . . . . . Ballistic Gun 1 | . . . . . . . . . 1 . Ballistic Cannon 2 | . . . . 2 . . . . . . Launcher 5 | . 1 . . 1 1 2 . . . . Special Weapon . | . . . . . . . . . . . Impact Weapon 1 | . . . . . . 1 . . . . Slashing Weapon 1 | . . . . . 1 . . . . . Piercing Weapon 1 | . . . . . . . . . 1 . Special Melee Weapon . | . . . . . . . . . . . Unidentified Prototypes 9 | . . . . . 2 4 1 1 1 . Parts Lost 13 | . . . . . 2 . . 1 5 5 Power 4 | . . . . . 1 . . . 1 2 Propulsion 5 | . . . . . 1 . . 1 1 2 Utility 4 | . . . . . . . . . 3 1 Weapon . | . . . . . . . . . . . Highest Loss Streak 5 | . . . . . 1 . . 1 4 5 To Critical Strikes . | . . . . . . . . . . . Average Backups 7 | 5 7 8 9 12 11 7 4 3 4 4 Power 1 | 1 1 1 1 . 1 1 1 1 . . Propulsion 1 | 3 2 2 2 1 2 1 . . 1 . Utility 2 | . 3 4 4 6 3 3 2 1 . . Weapon 2 | . . 1 2 3 3 1 1 1 2 3 Tool/Special . | . . . . . . . . . . . Unused Backups 20 | . 8 1 . 1 2 4 3 . 1 . Power 3 | . 1 . . . . 1 1 . . . Propulsion 5 | . 4 . . 1 . . . . . . Utility 9 | . 3 . . . . 3 2 . 1 . Weapon 3 | . . 1 . . 2 . . . . . Tool/Special . | . . . . . . . . . . . Average Slot Usage (%) 95 | . 100 100 100 100 98 93 93 97 91 79 Core 10 | . 11 14 14 14 9 7 12 11 9 8 Treads 13 | . 16 28 28 28 26 15 . . . . Leg 1 | . 11 . . . . . . . . . Flight 10 | . . . . . . 12 25 25 20 18 Device 15 | . 10 14 8 . 18 19 19 14 13 13 Storage 6 | . 14 14 14 14 9 4 . . . . Processor 8 | . . . 5 14 9 8 13 12 14 13 Hackware 4 | . . . . . . 2 7 14 12 12 Protection 4 | . 3 . . . 7 7 . 1 5 4 Energy Cannon 7 | . 10 14 14 1 17 6 . . . . Ballistic Gun 3 | . 14 14 14 1 . . . . . . Impact Weapon 1 | . . . . . . . 6 5 5 4 Slashing Weapon 2 | . . . . . . 4 5 4 3 . Peak Build Rating 91 | 9 10 10 15 17 29 51 64 74 91 90 Average Rating 39 | 8 9 10 12 16 26 35 55 69 84 80 On Entrance 32 | 6 9 10 10 15 17 26 47 60 74 85 Naked Turns 27 | . . . . . . . . . . 27 Heaviest Build 59 | 14 32 32 32 33 59 59 23 26 30 29 Greatest Support 88 | 20 40 40 40 40 66 88 23 28 36 30 Greatest Overweight (x) 1 | . 1 . . . 1 1 . . . . Average Overweight (x) . | . . . . . . . . . . . Largest Inventory Capacity 20 | 8 15 15 20 15 20 20 5 5 5 5 Average Capacity 11 | 8 12 15 15 15 19 13 5 5 5 5 Most Carried 15 | 6 9 10 11 13 15 11 5 5 5 5 Average Carried 7 | 5 7 8 9 12 11 7 4 3 4 4 Final Capacity 20 | 8 15 15 15 15 20 5 5 5 5 5 Final Carried 12 | 3 8 9 11 12 11 5 5 5 5 4 Class Distribution -------------------- 28% | Mutant 23% | Hacker-Ninja 17% | Infiltrator-Ninja 15% | Skirmisher 7% | Infiltrator-Skirmisher 5% | Infiltrator-Assassin Dominant Class ---------------- Mutant | -10/Materials Mutant | -10/Mines Mutant | -10/Exiles Mutant | -9/Mines Skirmisher | -8/Materials Infiltrator-Ninja | -7/Factory Infiltrator-Ninja | -6/Factory Hacker-Ninja | -5/Factory Hacker-Ninja | -4/Factory Hacker-Ninja | -4/Armory Resources | -11 -10 -10 -10 -9 -8 -7 -6 -5 -4 -4 ----------- Run | Yrd Mat Min Exi Min Mat Fac Fac Fac Fac Arm Matter Collected 1592 | 235 323 13 . 160 206 261 260 79 21 34 Remotely . | . . . . . . . . . . . Salvage Created 2393 | 105 547 . . 28 583 425 431 253 21 . Parts 106 | 6 35 . . 5 27 26 6 1 . . Haulers Intercepted 13 | . 2 . . . 2 3 4 2 . . Recyclers Shooed . | . . . . . . . . . . . Parts Field Recycled . | . . . . . . . . . . . Retrieved Matter . | . . . . . . . . . . . Parts Self-Destructed . | . . . . . . . . . . . Prevented . | . . . . . . . . . . . Kills | -11 -10 -10 -10 -9 -8 -7 -6 -5 -4 -4 ------- Run | Yrd Mat Min Exi Min Mat Fac Fac Fac Fac Arm Combat Hostiles Destroyed 35 | . 15 . . 8 10 2 . . . . Guns 6 | . 6 . . . . . . . . . Cannons 11 | . 3 . . . 7 1 . . . . AOE 17 | . 6 . . 8 3 . . . . . Classes Destroyed 11 | 2 5 . . . 1 3 . . . . Worker 3 | . 1 . . . 1 1 . . . . Builder 2 | . . . . . . 1 . . 1 . Tunneler 1 | 1 . . . . . . . . . . Hauler 13 | . 2 . . . 2 3 4 2 . . Recycler 2 | 1 . . . . . 1 . . . . Operator 2 | . . . . . 1 . . 1 . . Watcher 9 | . 3 . . . 2 1 1 2 . . Swarmer 17 | . 6 . . 8 3 . . . . . Grunt 16 | . 9 . . . 7 . . . . . Sentry 1 | . . . . . . 1 . . . . Programmer 1 | . . . . . . 1 . . . . Best Kill Streak 5 | 2 5 . . 4 5 3 1 2 1 . Combat Bots Only 5 | . 5 . . 4 4 1 . . . . Max Kills in Single Turn 3 | 1 3 . . 3 3 1 1 1 1 . Gunslinging . | . . . . . . . . . . . Exploded 3 | . 3 . . 3 3 . . . . . Melee . | . . . . . . . . . . . Uniques/NPCs Destroyed . | . . . . . . . . . . . Combat | -11 -10 -10 -10 -9 -8 -7 -6 -5 -4 -4 -------- Run | Yrd Mat Min Exi Min Mat Fac Fac Fac Fac Arm Hostile Shots Fired 371 | . 39 . . 21 48 70 15 9 19 150 Missed 147 | . 8 . . 5 14 25 8 4 8 75 Hits 224 | . 31 . . 16 34 45 7 5 11 75 Melee 19 | . . . . . . . . . . 19 Projectile 205 | . 31 . . 16 34 45 7 5 11 56 AOE 3 | . . . . . . . . . . 3 Critical Strikes 10 | . . . . . 1 . . . 2 7 Damage Taken 3959 | . 350 . . 164 547 463 73 73 724 1565 Core 1428 | . 85 . . 23 57 63 17 16 170 997 Absorbed by Shields . | . . . . . . . . . . . Redirected to Shielding 32 | . . . . . . 32 . . . . Regen/Repaired (Parts) 125 | . . . . . 37 . 18 22 48 . Core Remaining (%) 88 | 100 . . . 56 89 91 98 98 . . Volleys Fired 135 | 5 54 . . 6 48 21 . . 1 . Largest 2 | 2 2 . . 1 2 2 . . 1 . Hottest 136 | 60 80 . . 30 136 136 . . 33 . Shots Fired 230 | 10 78 . . 6 94 41 . . 1 . Gun 60 | 10 49 . . . . . . . 1 . Cannon 156 | . 23 . . . 92 41 . . . . Launcher 14 | . 6 . . 6 2 . . . . . Special . | . . . . . . . . . . . Kinetic 54 | 5 48 . . . . . . . 1 . Thermal 161 | 4 24 . . . 92 41 . . . . Explosive 14 | . 6 . . 6 2 . . . . . Electromagnetic 1 | 1 . . . . . . . . . . Robot Hit Streak 11 | 3 8 . . . 7 11 . . . . Robot Miss Streak 5 | 2 2 . . . 2 5 . . 1 . Penetration Max . | . . . . . . . . . . . Secondary Targets . | . . . . . . . . . . . Shots Hit Robots 156 | 4 52 . . . 56 28 9 6 1 . Core Hits 83 | 3 24 . . 10 30 13 2 1 . . Critical Kills . | . . . . . . . . . . . Critical Parts Destroyed 1 | . . . . . . . . 1 . . Critical Strikes 1 | . . . . . . . . 1 . . Smash 1 | . . . . . . . . 1 . . Melee Attacks 236 | . . . . . 1 44 38 64 78 11 Impact 162 | . . . . . . 7 32 51 61 11 Slashing 70 | . . . . . 1 37 6 13 13 . Piercing 4 | . . . . . . . . . 4 . Sneak Attacks 11 | . . . . . . 3 4 3 1 . Combat Hostiles . | . . . . . . . . . . . Follow-up Attacks 1 | . . . . . . . 1 . . . Damage Inflicted 4972 | 48 1078 6 . 327 1367 829 660 481 176 . Guns 461 | 48 413 . . . . . . . . . Cannons 1951 | . 297 . . . 1145 509 . . . . Explosions 882 | . 337 . . 327 218 . . . . . Melee 1537 | . . . . . . 320 660 481 76 . Ramming 141 | . 31 6 . . 4 . . . 100 . Kinetic 412 | 11 401 . . . . . . . . . Thermal 1985 | 22 309 . . . 1145 509 . . . . Explosive 882 | . 337 . . 327 218 . . . . . Electromagnetic 15 | 15 . . . . . . . . . . Impact 1184 | . . . . . . . 627 481 76 . Slashing 353 | . . . . . . 320 33 . . . Piercing . | . . . . . . . . . . . Highest Corruption 16 | . . . . . . 3 . . 16 16 Average Corruption 8 | . . . . . . 2 . . 13 16 Corruption Purged 3 | . . . . . . 3 . . . . Corruption Blocked . | . . . . . . . . . . . Effects 43 | . . . . . . 11 . . 17 15 Message Errors 15 | . . . . . . 4 . . 6 5 Matter Fused 9 | . . . . . . 2 . . 3 4 Heat Flow Errors 6 | . . . . . . 3 . . 3 . Energy Discharges 3 | . . . . . . 1 . . 1 1 Data Loss (minor) 4 | . . . . . . . . . 2 2 Data Loss (major) 2 | . . . . . . 1 . . . 1 Alerts 1 | . . . . . . . . . 1 . Misdirections 3 | . . . . . . . . . 1 2 Overload Shots . | . . . . . . . . . . . Overflow Damage 462 | . 57 . . . 15 7 124 223 36 . Projectiles 22 | . . . . . 15 7 . . . . Explosions 57 | . 57 . . . . . . . . . Melee 383 | . . . . . . . 124 223 36 . Knockbacks 3 | . . . . . . . 1 2 . . Impact 3 | . . . . . . . 1 2 . . Kinetic . | . . . . . . . . . . . Secondary . | . . . . . . . . . . . Self-Inflicted Damage 160 | . 18 . . 42 . . . . 100 . Shots 3 | . 1 . . 2 . . . . . . Rammed 10 | . 8 1 . . 1 . . . . . Targets Rammed 13 | . 11 1 . . 1 . . . . . Kicked 2 | . 2 . . . . . . . . . Crushed 1 | . 1 . . . . . . . . . Highest Temperature 282 | . 201 . . . 150 273 4 141 282 13 Average Temperature 58 | . 44 . . . 34 99 4 34 109 6 Received Heat Transfer 663 | . 159 . . . 270 81 6 . 54 93 Effects 2 | . . . . . . . . . 2 . Interference 2 | . . . . . . . . . 2 . Siege Activations . | . . . . . . . . . . . Martial Activations . | . . . . . . . . . . . Shielding Activations . | . . . . . . . . . . . Robots Disrupted . | . . . . . . . . . . . Combat Hostiles . | . . . . . . . . . . . Robots Corrupted 7 | . . . . . . . 3 3 1 . Combat Hostiles . | . . . . . . . . . . . Parts Fried 7 | . . . . . . . . 6 1 . Impact Corruptions 16 | . . . . . . . 5 9 2 . Robots Melted 1 | . . . . . . 1 . . . . Combat Hostiles 1 | . . . . . . 1 . . . . Parts Melted 6 | . . . . . 4 2 . . . . Heat Transferred 3664 | 50 654 . . . 2072 888 . . . . Parts Sabotaged . | . . . . . . . . . . . Parts Stolen . | . . . . . . . . . . . Parts Stripped . | . . . . . . . . . . . Power Chain Reactions . | . . . . . . . . . . . Alert | -11 -10 -10 -10 -9 -8 -7 -6 -5 -4 -4 ------- Run | Yrd Mat Min Exi Min Mat Fac Fac Fac Fac Arm Maximum Alert Level 1 | . 1 . . . . . . . . . Low Security (%) 94 | 100 58 100 . 100 100 100 100 100 100 100 Level 1 5 | . 41 . . . . . . . . . Level 2 . | . . . . . . . . . . . Level 3 . | . . . . . . . . . . . Level 4 . | . . . . . . . . . . . Level 5 . | . . . . . . . . . . . High Security . | . . . . . . . . . . . Max Security . | . . . . . . . . . . . Peak Influence 276 | 5 276 33 . 158 165 63 20 48 94 152 Initial 63 | . 3 33 . . 37 63 9 . 6 45 Average 42 | 3 173 2 . 72 34 8 2 16 8 93 Influence Increases 2220 | 10 508 . . 182 296 199 123 295 300 307 Destroy 0b10 Robot/C 620 | . 300 . . 128 160 32 . . . . Destroy 0b10 Robot/NC 140 | 10 30 . . 4 24 28 20 20 4 . Destroy Leader 160 | . 70 . . 16 32 24 10 8 . . Successful Hack 233 | . 24 . . . 32 46 33 83 15 . Select Force Hacks 24 | . . . . . . . . 24 . . Disable Machine 27 | . 15 . . . 12 . . . . . Destroy Structure 362 | . 39 . . 34 12 33 24 88 110 22 Partial Spotted 294 | . . . . . . 36 24 48 96 90 Lose Combat Pursuer 360 | . 30 . . . 24 . 12 24 75 195 Influence Decreases 2078 | 5 427 86 . 84 253 319 144 281 220 259 Entered New Map 263 | . 2 53 . . 61 78 12 . 8 49 Time Decay 1709 | 5 425 33 . 84 182 241 132 271 176 160 Lost Part 106 | . . . . . 10 . . 10 36 50 Squads Dispatched 36 | . 3 . . . 3 8 4 6 9 3 Investigation 6 | . 2 . . . . 1 . 1 2 . Extermination 15 | . . . . . . 4 3 4 3 1 Reinforcement 14 | . 1 . . . 2 3 1 1 4 2 Assault . | . . . . . . . . . . . Garrison 1 | . . . . . 1 . . . . . Intercept . | . . . . . . . . . . . Searches Triggered . | . . . . . . . . . . . Construction Impeded . | . . . . . . . . . . . Haulers Reinforced 1 | . . . . . . 1 . . . . Active Scanning Responses . | . . . . . . . . . . . Cargo Convoy Interrupts 2 | . . . . . . . . 1 1 . Stealth | -11 -10 -10 -10 -9 -8 -7 -6 -5 -4 -4 --------- Run | Yrd Mat Min Exi Min Mat Fac Fac Fac Fac Arm Distress Signals 5 | . . . . . 2 . . 1 . 2 Communications Jammed 8 | . . . . . . . . . . 8 Distress Signals 8 | . . . . . . . . . . 8 Times Spotted 156 | . 21 . . 8 26 24 8 11 20 38 Peak Tracking Total 20 | . 4 . . 4 4 4 3 4 11 20 Tactical Retreats 24 | . 2 . . . 1 4 3 3 6 5 Traps | -11 -10 -10 -10 -9 -8 -7 -6 -5 -4 -4 ------- Run | Yrd Mat Min Exi Min Mat Fac Fac Fac Fac Arm Traps Triggered 6 | . 1 . . . . 3 1 1 . . Indirectly . | . . . . . . . . . . . Trap Hack Attempts . | . . . . . . . . . . . Triggered . | . . . . . . . . . . . Disarmed . | . . . . . . . . . . . Reprogrammed . | . . . . . . . . . . . Reused . | . . . . . . . . . . . Traps Extracted . | . . . . . . . . . . . Installed . | . . . . . . . . . . . Triggered . | . . . . . . . . . . . Machines | -11 -10 -10 -10 -9 -8 -7 -6 -5 -4 -4 ---------- Run | Yrd Mat Min Exi Min Mat Fac Fac Fac Fac Arm Machines Disabled 2 | . 1 . . . 1 . . . . . Max in Single Turn 1 | . 1 . . . 1 . . . . . Garrison Access 2 | . . . . . . 2 . . . . Machines Repaired . | . . . . . . . . . . . Machines Dismantled . | . . . . . . . . . . . Machines Sabotaged . | . . . . . . . . . . . Overloaded Fab Kills . | . . . . . . . . . . . Hacking | -11 -10 -10 -10 -9 -8 -7 -6 -5 -4 -4 --------- Run | Yrd Mat Min Exi Min Mat Fac Fac Fac Fac Arm Machines Accessed 77 | . 9 . 1 . 9 14 18 17 6 3 Terminals 49 | . 6 . . . 8 7 13 11 2 2 Fabricators 4 | . . . . . . 2 . . 2 . Repair Stations 6 | . 1 . . . 1 1 1 1 1 . Recycling Units 10 | . 2 . . . . 1 2 3 1 1 Scanalyzers 3 | . . . . . . 1 . 2 . . Garrison Access 4 | . . . . . . 2 2 . . . Total Hacks 162 | . 25 . 1 . 15 28 36 35 12 10 Successful 95 | . 13 . 1 . 10 11 20 24 11 5 Failed 67 | . 12 . . . 5 17 16 11 1 5 Catastrophic 12 | . . . . . 1 3 5 3 . . Database Lockouts . | . . . . . . . . . . . Manual 79 | . 12 . 1 . 13 13 19 18 2 1 Terminals 109 | . 18 . . . 13 15 29 24 3 7 Fabricators 9 | . . . . . . 4 . . 5 . Repair Stations 13 | . 2 . . . 2 3 2 2 2 . Recycling Units 20 | . 5 . . . . 2 3 5 2 3 Scanalyzers 6 | . . . . . . 2 . 4 . . Garrison Access 4 | . . . . . . 2 2 . . . Terminal Hacks 26 | . 2 . 1 . 1 3 8 6 2 3 Record 5 | . . . . . . 1 3 1 . . Prototype ID Bank 3 | . . . . . . . 2 1 . . Open DSF 3 | . . . . . . . 1 1 1 . Branch Access Points 2 | . . . . . . . 1 1 . . Alert Level 3 | . 1 . . . . . . . 1 1 Locate Traps 3 | . 1 . . . . . . . . 2 Transport Status 1 | . . . . . . 1 . . . . Recall Investigation 1 | . . . . . . . . 1 . . Recall Extermination 1 | . . . . . . . 1 . . . Hauler Manifests 3 | . . . . . 1 1 . 1 . . Proto ID Catalog 1 | . . . 1 . . . . . . . Fabricator Hacks 5 | . . . . . . 1 . . 4 . Network Status 1 | . . . . . . 1 . . . . Load Schematic 2 | . . . . . . . . . 2 . Build 2 | . . . . . . . . . 2 . Repair Station Hacks 10 | . 1 . . . 2 1 2 2 2 . Scan Component 6 | . 1 . . . 1 1 1 1 1 . Repair 4 | . . . . . 1 . 1 1 1 . Recycling Unit Hacks 13 | . 3 . . . . 1 2 3 2 2 Report Inventory 10 | . 2 . . . . 1 2 3 1 1 Retrieve Matter 1 | . . . . . . . . . 1 . Retrieve Components 2 | . 1 . . . . . . . . 1 Scanalyzer 5 | . . . . . . 1 . 4 . . Insert Component 3 | . . . . . . 1 . 2 . . Analyze 2 | . . . . . . . . 2 . . Garrison Access Hacks 2 | . . . . . . 2 . . . . Seal Access 2 | . . . . . . 2 . . . . Unauthorized Hacks 34 | . 7 . . . 7 2 8 9 1 . Terminals 33 | . 7 . . . 7 2 8 8 1 . Assimilate 2 | . . . . . . . 1 1 . . Botnet 9 | . 2 . . . 1 1 2 2 1 . Skim 22 | . 5 . . . 6 1 5 5 . . Fabricators . | . . . . . . . . . . . Repair Stations . | . . . . . . . . . . . Recycling Units 1 | . . . . . . . . 1 . . Tunnel 1 | . . . . . . . . 1 . . Scanalyzers . | . . . . . . . . . . . Garrison Access . | . . . . . . . . . . . Data Cores Recovered 1 | . . . . . . . . 1 . . Used . | . . . . . . . . . . . Hacking Detections 63 | . 8 . . . 7 11 16 15 4 2 Full Trace Events 4 | . 2 . . . . . . . 2 . Feedback Events . | . . . . . . . . . . . Feedback Blocked . | . . . . . . . . . . . Robot Schematics Acquired . | . . . . . . . . . . . Robots Built . | . . . . . . . . . . . Authchips . | . . . . . . . . . . . Time . | . . . . . . . . . . . Total Robot Build Rating . | . . . . . . . . . . . Part Schematics Acquired 2 | . . . . . . . . 2 . . Parts Built 2 | . . . . . . . . . 2 . Authchips . | . . . . . . . . . . . Time 134 | . . . . . . . . . 134 . Total Part Build Rating 8 | . . . . . . . . . 8 . Parts Repaired 4 | . . . . . 1 . 1 1 1 . Time 154 | . . . . . 26 . 44 14 70 . Parts Recycled . | . . . . . . . . . . . Recycled Matter . | . . . . . . . . . . . Retrieved Matter . | . . . . . . . . . . . Retrieved Components 4 | . 3 . . . . . . . . 1 Parts Scanalyzed 2 | . . . . . . 1 . 1 . . Part Schematics Acquired 2 | . . . . . . . . 2 . . Parts Damaged . | . . . . . . . . . . . Bothacking | -11 -10 -10 -10 -9 -8 -7 -6 -5 -4 -4 ------------ Run | Yrd Mat Min Exi Min Mat Fac Fac Fac Fac Arm Used RIF Installer . | . . . . . . . . . . . Robots Hacked . | . . . . . . . . . . . Non-combat . | . . . . . . . . . . . Combat . | . . . . . . . . . . . Robot Hacks Applied . | . . . . . . . . . . . Relay Couplers Released . | . . . . . . . . . . . Fabnet Peak Effective % . | . . . . . . . . . . . Robots Rewired . | . . . . . . . . . . . Allies Hacked . | . . . . . . . . . . . Hacks Repelled . | . . . . . . . . . . . Allies | -11 -10 -10 -10 -9 -8 -7 -6 -5 -4 -4 -------- Run | Yrd Mat Min Exi Min Mat Fac Fac Fac Fac Arm Total Allies 3 | . . 3 . . . . . . . . Largest Group 3 | . . 3 3 3 . . . . . . Highest-Rated Group 40 | . . 40 40 40 . . . . . . Highest-Rated Ally 16 | . . 16 16 16 . . . . . . Total Orders . | . . . . . . . . . . . Ally Attacks 10 | . . . . 10 . . . . . . Total Damage 94 | . . . . 94 . . . . . . Kills 1 | . . . . 1 . . . . . . Allies Corrupted . | . . . . . . . . . . . Allies Melted . | . . . . . . . . . . . Intel | -11 -10 -10 -10 -9 -8 -7 -6 -5 -4 -4 ------- Run | Yrd Mat Min Exi Min Mat Fac Fac Fac Fac Arm Active Infowar (turns) 7405 | 24 864 475 221 . 1392 1693 782 773 873 308 Optics 1405 | . . . . . . . . 224 873 308 Terrain 45 | 24 21 . . . . . . . . . Structural 5968 | . 815 . . . 1392 1693 782 773 513 . Machine Analysis 2531 | . . . . . . . 581 773 869 308 Jamming 1318 | . . . . . . . . 168 842 308 ECM 2355 | . 28 475 221 . 133 1191 132 39 112 24 Robot Analysis Total . | . . . . . . . . . . . Derelict Logs Recovered 2 | . . 1 . 1 . . . . . . Drone Launches . | . . . . . . . . . . . Drone Recoveries . | . . . . . . . . . . . Exploration | -11 -10 -10 -10 -9 -8 -7 -6 -5 -4 -4 ------------- Run | Yrd Mat Min Exi Min Mat Fac Fac Fac Fac Arm Turns Passed 8125 | 36 1121 475 369 268 1400 1693 782 773 873 335 Spaces Moved 10076 | 14 635 295 228 150 708 2345 1791 1889 1318 703 Core 55 | . . . . . . . . . . 55 Treads 2267 | . 379 295 228 150 708 507 . . . . Legs 270 | 14 256 . . . . . . . . . Wheels . | . . . . . . . . . . . Hover . | . . . . . . . . . . . Flight 7484 | . . . . . . 1838 1791 1889 1318 648 Fastest Speed 15 | 120 120 160 160 160 160 29 28 25 15 24 Average Speed 61 | 120 144 160 160 160 164 60 28 27 25 26 Slowest Speed 240 | 120 190 160 160 160 240 240 29 28 28 50 Overloaded Moves 158 | . . . . . . . . 17 112 29 Propulsion Burnouts . | . . . . . . . . . . . Robots Hopped 27 | . . . . . . 12 1 8 3 3 Potential Cave-ins 9 | . . . . . . 3 . . 6 . Cave-ins Triggered 1 | . . . . . . . . . 1 . Exploration Rate (%) 47 | 3 99 61 60 28 51 55 51 40 23 49 Regions Visited 10 Branch Regions 4 Pre-discovered Areas 5 | . . . . . 2 . . 3 . . Known Exits Taken 2 | . 1 . . . 1 . . . . . Unknown Exits Taken 8 | 1 . 1 1 1 . 1 1 1 1 . Scrap Searched 2 | . . 1 . 1 . . . . . . Spaces Dug 176 | . . . . . 1 36 24 44 60 11 Terrain Destroyed 273 | . 39 . . 50 8 36 24 44 61 11 Melee 176 | . . . . . 1 36 24 44 60 11 Projectile . | . . . . . . . . . . . AOE 96 | . 39 . . 50 7 . . . . . Terrain Rammed 1 | . . . . . . . . . 1 . Walls Destroyed 1 | . . . . . . . . . 1 . Machines Disabled . | . . . . . . . . . . . Actions | -11 -10 -10 -10 -9 -8 -7 -6 -5 -4 -4 --------- Run | Yrd Mat Min Exi Min Mat Fac Fac Fac Fac Arm Total 11423 | 23 761 298 231 171 846 2513 1991 2040 1724 825 Wait 700 | . 21 . . . 39 48 114 69 308 101 Move 10014 | 13 634 294 227 149 707 2321 1788 1872 1311 698 Hop 25 | . . . . . . 11 1 8 3 2 Pick Up 51 | . 9 2 1 5 14 9 4 2 5 . Fast Attach 58 | 1 6 . . . 1 17 12 6 9 6 Attach 30 | . 3 . . . 6 6 1 5 7 2 Detach 27 | . 7 . . . 2 5 3 4 5 1 Swap 49 | 1 6 . 3 7 13 11 3 1 3 1 Drop 84 | 3 10 1 . 4 14 20 15 4 10 3 Fire 135 | 5 54 . . 6 48 21 . . 1 . Melee 200 | . . . . . 1 44 32 51 61 11 Ram 1 | . . . . . . . . . 1 . Kick 2 | . 2 . . . . . . . . . Crush 11 | . 9 1 . . 1 . . . . . Escape Stasis 36 | . . . . . . . 18 18 . . Rewire . | . . . . . . . . . . . Trap . | . . . . . . . . . . . Miscellaneous . | . . . . . . . . . . . Route ------- -11/Scrapyard -10/Materials (discovered 6 exits: [*Mat x3] / *Min x2 / [*Sub]) -10/Mines -10/Exiles -9/Mines -8/Materials (discovered 3 exits: *Fac / *Sto x2) -7/Factory (discovered 3 exits: *Fac x2 / [*Low]) -6/Factory (discovered 6 exits: *Fac x2 / *Low x2 / Ext x2) -5/Factory (discovered 3 exits: *Fac / *Upp x2) -4/Factory (discovered 2 exits: [*Upp] / *Arm) -4/Armory (discovered 2 exits: Res x2) History --------- Turn | Location | Event 1 | -11/Scrapyard | Discovered new exit (range 2) 37 | -11/Scrapyard | Entered Materials 318 | -10/Materials | Build established: Mutant 410 | -10/Materials | Discovered new exit (range 16) 447 | -10/Materials | Identified exit to Mines 581 | -10/Materials | Discovered new exit (range 10) 752 | -10/Materials | Discovered new exit (range 9) 863 | -10/Materials | Discovered exit to Mines (range 16) 917 | -10/Materials | Discovered new exit (range 8) 970 | -10/Materials | Discovered new exit (range 10) 1158 | -10/Materials | Entered Mines 1415 | -10/Mines | A weapon hastily lodged in a ceiling crevice suddenly fell to the ground 1511 | -10/Mines | Learned 4 Materials zone layouts 1564 | -10/Mines | Assisted by bots powering up and referring to "LRC-V3" 1627 | -10/Mines | Deemed a non-threat by the Exiles lab entrance 1627 | -10/Mines | Discovered new exit (range 5) 1633 | -10/Mines | Entered Exiles 1633 | -10/Exiles | Accompanied by 3 allies 1672 | -10/Exiles | Met 8R-AWN 1701 | -10/Exiles | Met EX-HEX 1742 | -10/Exiles | Met EX-BIN 1761 | -10/Exiles | Aligned with FarCom system 1763 | -10/Exiles | Given EX-Vault access code 1800 | -10/Exiles | Opened EX-Vault 1811 | -10/Exiles | Found 0b10 Alert Chip 1844 | -10/Exiles | Warned to stay clear of 0b10 Research branches 1890 | -10/Exiles | Met EX-DEC 1989 | -10/Exiles | Discovered new exit (range 10) 2002 | -10/Exiles | Left Exiles lab with 0b10 Alert Chip 2002 | -10/Exiles | Entered Mines 2002 | -9/Mines | Accompanied by 3 allies 2118 | -9/Mines | Lost 3 allies 2179 | -9/Mines | Discovered new exit (range 5) 2270 | -9/Mines | Entered Materials 2270 | -8/Materials | Evolved 4 slots: Propulsion x1, Utility x3 2271 | -8/Materials | Identified exit to Storage 2272 | -8/Materials | Identified exit to Factory 2544 | -8/Materials | Repaired Grenade Launcher 2572 | -8/Materials | Build established: Skirmisher 2776 | -8/Materials | Discovered exit to Storage (range 9) 3164 | -8/Materials | Garrison activated, responded to threat 3515 | -8/Materials | Learned Storage stockpile data 3568 | -8/Materials | Learned Storage trap positions 3609 | -8/Materials | Learned location of Zion (-6) 3670 | -8/Materials | Entered Factory 3670 | -7/Factory | Evolved 2 slots: Propulsion x1, Utility x1 3896 | -7/Factory | Discovered new exit (range 11) 4069 | -7/Factory | Build established: Infiltrator-Assassin 4932 | -7/Factory | Build established: Infiltrator-Ninja 5073 | -7/Factory | Discovered new exit (range 4) 5077 | -7/Factory | Discovered new exit (range 12) 5363 | -7/Factory | Entered another Factory area 5363 | -6/Factory | Evolved 2 slots: Power x1, Utility x1 5364 | -6/Factory | Identified exit to Extension 5487 | -6/Factory | Identified exit to DSF 5555 | -6/Factory | Discovered new exit (range 6) 5881 | -6/Factory | Repaired Xenon Bombardment Thruster 5902 | -6/Factory | Discovered new exit (range 9) 6026 | -6/Factory | Identified exit to Lower Caves 6120 | -6/Factory | Discovered new exit (range 12) 6145 | -6/Factory | Entered another Factory area 6145 | -5/Factory | Evolved 2 slots: Propulsion x1, Utility x1 6149 | -5/Factory | Identified exit to DSF 6256 | -5/Factory | Build established: Hacker-Ninja 6489 | -5/Factory | Learned 12 Research zone layouts 6541 | -5/Factory | Learned 12 Research zone layouts 6546 | -5/Factory | Identified exit to Upper Caves 6583 | -5/Factory | Learned location of 2 exits from Research 6639 | -5/Factory | Learned location of Upper Caves (-4) 6650 | -5/Factory | Learned Extension emergency access door positions 6652 | -5/Factory | Learned Extension security intel 6664 | -5/Factory | Learned location of 1 exit from Armory 6687 | -5/Factory | Learned location of Warlord (-4) 6705 | -5/Factory | Discovered new exit (range 10) 6763 | -5/Factory | Learned location of 1 exit from Armory 6797 | -5/Factory | Repaired Xenon Bombardment Thruster 6853 | -5/Factory | Cargo convoy interrupted 6918 | -5/Factory | Entered another Factory area 6918 | -4/Factory | Evolved 2 slots: Utility x2 6992 | -4/Factory | Fabricated Cld. VTOL Module? 7004 | -4/Factory | Fabricated Cld. VTOL Module (x1) 7051 | -4/Factory | Identified exit to DSF 7404 | -4/Factory | Discovered new exit (range 9) 7431 | -4/Factory | Crushed by falling debris 7431 | -4/Factory | System corruption reached 10% 7462 | -4/Factory | Lost 4 parts (1n3u) 7485 | -4/Factory | Discovered new exit (range 20) 7640 | -4/Factory | Repaired Cld. VTOL Module 7725 | -4/Factory | Spotted B-86 Titan 7742 | -4/Factory | Cargo convoy interrupted 7791 | -4/Factory | Entered Armory 7792 | -4/Armory | Identified exit to Research 8099 | -4/Armory | Released all parts (13) 8114 | -4/Armory | Core integrity fell below 50% 8124 | -4/Armory | Core integrity fell below 20% 8124 | -4/Armory | Spotted B-86 Titan 8126 | -4/Armory | Destroyed by G-67 Veteran with Field Laser Last Messages --------------- 08096_ Terminal disabled. 08098_ Penetrated by Slug. 08098_ Field Propulsion Array destroyed. 08099_ Released Imp. System Shield. 08099_ Released Centrium Leg. 08099_ Released Cld. VTOL Module. 08099_ Released Hacking Suite. 08099_ Released Adv. Transmission Jammer. 08099_ Released Machine Analyzer. 08099_ Released Power Maul. 08099_ Released Hacking Suite. 08099_ Released Adv. ECM Suite. 08099_ Released Enh. Optical Array. 08099_ Released Jamming Amplifier. 08099_ Released Exp. Cesium-ion Thruster. 08104_ Penetrated by Slug. 08113_ C-35 Carver destroyed. 08123_ Penetrated by Slug. 08123_ Terminal disabled. 08126_ Acquired 34 matter. Map ----- +----------------------------------------------------+ | | | | | | | | | ?????????????????????????????????????????????????? | | ?????????????????????????????????????????????????? | | ?????????????????????????????????????????????????? | | ?????????????????????????????????????????????????? | | ?????????????????????????????????????????????????? | | ?????????????????????????????????????????????????? | | ?????????????????????????????????????????????????? | | ????????????????????????????#########????????????? | | ????????????????????????????#"""T"""#????????????? | | #####?##???????????##########""" """###??????????? | | ? #??????????? #] #??????????? | | "? #???????????" # "" #??????????? | | " #???????????" # """ """ F" #??#######?? | | " #???????????" # """ """ " +? #?? | | #???????""""" #] """ """ "" #? #?? | | #???????? # # #?? | | +################# ## #####+######+#### #?? | | s """"" #?? | | =! gs c T"" #?? | | ]%* g s """ """ """ #?? | | =! ppY pY = "" """ """ #?? | | #####+#+####+###### sc @/ """ """ """ #?? | | #?# ! """ """ """ #?? | | =* =] #?### """^ """ """ #?? | | [= ! #??# #?? | | [[ =* #??## #?? | | #???# BB #?? | | #???# BB | | #???# | | #???# = #######+### | | ################???# ##########??????????? " | | ???????????????????# #??????????????"""????" | | ???????????????????# #??????????????"""????" | | ???????????????????# #??????????????"""????? | | ???????????????????# #??????????????"""????? | | ???????????????#####+### #??????????????"""????? | | ???????????????# # #??????????????"""????? | | ???????????????# # #?????????????????????? | | ???????????????# # #?????????????????????? | | ???????????????# #! #?????????????????????? | | ???????????????# # #?????????????????????? | | ???????????????# """"" # #######+##????###?????? | | ???????????????# "???" # #####= #?????? | | ???????????????# "???" # ^ / ???? | | ???????????????# """"" " = / !???? | | ???????????????# # ===# # ????? | +----------------------------------------------------+ Best States ------------- Heat Dissipation 56 Energy Generation 32 Energy Capacity 350 Matter Stores 300 Matter Capacity 300 Sight Range 22 Terrain Scan Range 16 Terrain Scan Density 10 ECM Strength 2 Jamming Range 16 Power Amplification 20 Armor Coverage 150 Propulsion Shielding 33 Utility Shielding 66 Evasion (%) 65 Melee Accuracy 5 Recoil Reduction 4 Offensive Hacking 32 Trap Extractor Capacity 8 Item Schematics ----------------- Cld. VTOL Module | -5/Factory | Scanalyzed Imp. Light Armor Plating | -5/Factory | Scanalyzed Robot Schematics ------------------ None Fabricated ------------ Cld. VTOL Module | x1 | -4/Factory Cld. VTOL Module | x1 | -4/Factory Repaired ---------- Grenade Launcher | 38% | -8/Materials Xenon Bombardment Thruster | 40% | -6/Factory Xenon Bombardment Thruster | 26% | -5/Factory Cld. VTOL Module | 20% | -4/Factory Alien Tech Used ----------------- None Achievements -------------- Prolific Hacker Challenges ------------ None Game ------ Seed LightpackDeepStorm Manual? 0 Play Time 02:43:12 Cumulative 28.5 hours Start 2025.05.12 @ 19:04:45 End 2025.05.14 @ 07:41:08 Sessions 7 Manual Loads 0 Difficulty Rogue Special Mode None Game No. 51 Rogue 51 Adventurer 0 Explorer 0 Win Type - Total 0 Types 0/0/0/0/0/0/0/0/0/0 Lore% 16 Gallery% 25 Achievement% 32 Wizard Run 0 Options --------- Layout 2 ASCII 0 Keyboard 0 Movement Numpad Keybinds 0 Fullscreen 2 Font 32/Tamsyn Map View 50x44 Zoom Use 0% Tactical HUD 1 Map Filters NONE Filters NONE Steam 1 RUN: e1e6d15e-da42-415e-8664-f36dd4fc9b46